[Event "10th Cherry Blossom Classic 2023"]
[Site "Dulles"]
[Date "2023.05.26"]
[Round "2.10"]
[White "Burke, John M"]
[Black "Sriniaiyer, Sudarshan"]
[Result "1-0"]
[ECO "B33"]
[WhiteElo "2583"]
[BlackElo "2211"]
[Annotator "TA"]
[PlyCount "97"]
[EventDate "2023.05.24"]
[EventType "swiss"]
[EventCountry "USA"]
[SourceTitle "playchess.com"]
[Source "ChessBase"]
[SourceQuality "1"]
[TimeControl "5400+30"]

{[%evp 16,97,15,8,13,10,7,0,12,18,24,0,24,0,0,3,0,-27,-16,-27,0,0,0,0,29,30,24,18,27,16,39,37,38,36,46,47,48,43,49,20,42,27,40,16,35,32,27,37,48,51,52,53,66,-12,36,24,33,23,88,95,109,117,256,243,250,256,236,245,257,257,428,418,486,477,2354,1035,29983,29984,29984,29985,29984,29984,29988,29989]} 1. e4 {[%emt 0:00:03]} c5 {[%emt 0:00:22]} 2. Nf3 {[%emt 0:00:08]} Nc6 {[%emt 0:00:18]} 3. d4 {[%emt 0:00:20]} cxd4 {[%emt 0:00:14]} 4. Nxd4 {[%emt 0:00:04]} Nf6 {[%emt 0:00:40]} 5. Nc3 {[%emt 0:00:05]} e5 {[%emt 0:00:11]} 6. Ndb5 {[%emt 0:00:05]} d6 {[%emt 0:00:06]} 7. Nd5 {[%emt 0:00:04]} Nxd5 {[%emt 0:00:06]} 8. exd5 {[%emt 0:00:03]} Nb8 {[%emt 0:00:08]} 9. a4 {[%emt 0:00:10]} Be7 {[%emt 0:01:21] B33: Sicilian: Pelikan and Sveshnikov Variations.} 10. Bd2 {[%emt 0:00:49]} O-O {[%emt 0:06:00]} 11. Be2 {[%emt 0:00:36]} f5 {[%emt 0:02:20] The position is equal. 11...Nd7 gains popularity.} 12. a5 {[%emt 0:02:42]} f4 {[%emt 0:09:34]} 13. O-O {[%emt 0:01:20]} a6 {[%emt 0:04:00]} 14. Na3 {[%emt 0:04:39]} Bf5 {[%emt 0:01:00]} 15. Nc4 {[%emt 0:01:38]} Nd7 {[%emt 0:00:36] [#]} 16. Ra3 $146 {[%emt 0:04:00]} ({Predecessor:} 16. Bb4 Rf6 17. Ra3 Rc8 18. Rc3 Bf8 19. Bg4 Bxg4 20. Qxg4 Rg6 21. Qf5 Rf6 22. Qd3 {1-0 Maghsoodloo,P (2699)-Moiseenko,A (2582) Chess.com Rapid Wk15 Swiss 2022 (3)}) 16... Rc8 {[%emt 0:05:41]} 17. Rb3 {[%emt 0:14:21]} Rc7 {[%emt 0:02:51]} (17... Nc5 $5 {[%cal Rc5b3]} 18. Ra3 Qe8 $11) 18. Bb4 {[%emt 0:08:24]} Rf6 {[%emt 0:02:22]} 19. Rc3 {[%emt 0:00:40]} Rg6 {[%emt 0:20:21]} 20. Bh5 {[%emt 0:05:45]} Rh6 {[%emt 0:02:53]} 21. Bg4 $1 {[%emt 0:02:02]} Bxg4 {[%emt 0:05:38]} 22. Qxg4 {[%emt 0:00:04]} Kh8 {[%emt 0:04:14]} 23. Re1 {[%emt 0:09:12]} Nf6 {[%emt 0:06:32][%csl LRd5,LRg4]} 24. Qe6 {[%emt 0:07:10][%cal Rb4d6]} Ne8 {[%emt 0:12:39]} (24... Ne4 $2 25. Nxe5 Ng5 26. Qf5 Rxc3 27. bxc3 $18) 25. Qf5 {[%emt 0:02:11][%cal Oc4e5] Nxe5! would be deadly. Black is weak on the light squares} Rf6 {[%emt 0:04:45]} 26. Qd3 {[%emt 0:01:10]} Rf8 {[%emt 0:00:44]} 27. Ra1 {[%emt 0:04:00]} Bf6 {[%emt 0:00:56][%cal Oe5e4]} (27... f3 {keeps more tension.} 28. g3 Qd7 29. Re1 Qg4) 28. Qe4 {[%emt 0:01:18]} g5 {[%emt 0:00:27]} 29. Raa3 {[%emt 0:01:11]} Bg7 {[%emt 0:00:41]} 30. Nb6 {[%emt 0:04:45]} Nf6 {[%emt 0:00:42]} 31. Qe2 {[%emt 0:00:12]} Rff7 {[%emt 0:00:48]} 32. Rxc7 {[%emt 0:09:55]} Rxc7 {[%emt 0:00:03]} 33. c4 {[%emt 0:00:04]} Bf8 {[%emt 0:01:19]} 34. Bc3 {[%emt 0:00:57]} ({Better is} 34. c5 $14) 34... Nd7 {[%emt 0:01:07]} (34... Qe8 $11 {is more appropriate.}) 35. b4 {[%emt 0:04:26]} Nxb6 {[%emt 0:00:59]} 36. axb6 {[%emt 0:00:03]} Re7 {[%emt 0:00:33] [#]} (36... Rf7 $1 $11 {remains equal.}) 37. Qh5 $1 $16 {[%emt 0:03:15] White is more active.} Qxb6 {[%emt 0:01:46]} 38. Qxg5 {[%emt 0:01:05]} Qc7 {[%emt 0:01:41] This move loses the game for Black.} (38... Rf7 $16) 39. Qxf4 $18 {[%emt 0:00:46][%cal Rf4f8]} Rf7 {[%emt 0:00:33]} 40. Qe4 {[%emt 0:00:22]} ({But not} 40. Qh4 $6 Qd7) 40... Bg7 {[%emt 0:00:49]} 41. g3 {[%emt 0:02:08] Prevents Rf4.} Qc8 {[%emt 0:00:33]} 42. Kg2 {[%emt 0:02:37]} Rc7 $2 {[%emt 0:00:27] [#]} (42... Qf5 {keeps fighting.} 43. Qxf5 Rxf5) 43. c5 $1 {[%emt 0:00:04][%mdl 576] Deflection} dxc5 {[%emt 0:00:33]} (43... Rf7 44. cxd6) 44. bxc5 {[%emt 0:00:34]} ({Less strong is} 44. Bxe5 Rf7 45. Bxg7+ Kxg7 $18) 44... Rxc5 {[%emt 0:01:10]} (44... Kg8 $142 45. Bb4 Re7) 45. Bxe5 {[%emt 0:00:04]} Rc4 {[%emt 0:01:10]} 46. Bxg7+ {[%emt 0:00:07] White mates.} Kxg7 {[%emt 0:00:02]} 47. Qe7+ {[%emt 0:00:18]} Kg8 {[%emt 0:00:30]} 48. d6 {[%emt 0:00:52]} Qc6+ {[%emt 0:00:13]} 49. Rf3 {[%emt 0:00:35] Weighted Error Value: White=0.08 (flawless) /Black=0.39} 1-0

[Event "10th Cherry Blossom Classic 2023"]
[Site "Dulles"]
[Date "2023.05.26"]
[Round "2.11"]
[White "Hilby, Craig"]
[Black "Slade, Theodore"]
[Result "1-0"]
[ECO "E05"]
[WhiteElo "2401"]
[BlackElo "2021"]
[Annotator "TA"]
[PlyCount "69"]
[EventDate "2023.05.24"]
[EventType "swiss"]
[EventCountry "USA"]
[SourceTitle "playchess.com"]
[Source "ChessBase"]
[SourceQuality "1"]
[TimeControl "5400+30"]

{[%evp 15,69,10,20,15,23,31,35,22,100,96,98,126,103,97,154,150,138,93,109,84,70,86,162,169,163,165,211,210,196,-263,175,153,170,181,329,331,318,314,393,370,983,962,29990,29991,29991,29992,29992,29993,29993,29994,29994,29995,29995,29994,29996,29997]} 1. d4 {[%emt 0:01:27]} d5 {[%emt 0:00:09]} 2. c4 {[%emt 0:00:08]} e6 {[%emt 0:00:06]} 3. Nf3 {[%emt 0:00:05]} Nf6 {[%emt 0:00:15]} 4. g3 {[%emt 0:00:09]} Be7 {[%emt 0:00:07]} 5. Bg2 {[%emt 0:00:14]} O-O {[%emt 0:00:11]} 6. O-O {[%emt 0:00:05]} dxc4 {[%emt 0:00:09]} 7. Qc2 {[%emt 0:00:28]} a6 {[%emt 0:00:12]} 8. a4 {[%emt 0:00:21]} Bd7 {[%emt 0:00:08]} (8... c5 {looks sharper.} 9. dxc5 Bxc5 10. Ne5 Qc7) 9. Rd1 {[%emt 0:00:21] E05: Open Catalan: 5 Nf3 Be7.} Nc6 {[%emt 0:05:35]} 10. Qxc4 {[%emt 0:01:08]} Na5 {[%emt 0:05:02]} 11. Qc2 {[%emt 1:31:34] [#] White is slightly better.} c5 $146 {[%emt 0:02:28]} ({Predecessor:} 11... Bc6 12. Nc3 Nd5 13. e4 Nb4 14. Qe2 Nb3 15. Rb1 Qe8 16. Bf4 Rc8 17. d5 Bxa4 18. Nxa4 Qxa4 19. dxe6 fxe6 {1-0 Maletin,P (2580)-Khodashenas,M (2393) Mashhad Ferdowsi op 6th 2016 (8)}) 12. dxc5 $16 {[%emt 0:00:00]} Rc8 {[%emt 0:00:35]} 13. b4 {[%emt 0:00:00][%cal Bb2b4,Bb4b5][%mdl 32]} Nc6 {[%emt 0:00:15]} 14. Qb3 {[%emt 0:00:00] White has more active pieces.} a5 {[%emt 0:07:03]} (14... b6 $142) 15. b5 $36 {[%emt 0:00:00][%mdl 2048] White is in control.} Nb4 {[%emt 0:11:44]} 16. Ne5 {[%emt 0:00:00] c6 is the strong threat.} Rxc5 {[%emt 0:26:56]} 17. Nxd7 {[%emt 0:00:00]} Nxd7 {[%emt 0:00:19]} 18. Be3 {[%emt 0:00:00]} (18. Bxb7 $6 Qc7 19. Bc6 Nxc6 20. bxc6 Ne5 $11) 18... Rc2 {[%emt 0:03:09]} (18... Nc2 $16 {was necessary.}) 19. Na3 $1 $18 {[%emt 0:00:00]} ({Worse is} 19. Bxb7 Nc5 20. Rxd8 Nxb3 $11) 19... Rxe2 {[%emt 0:01:51]} 20. Bxb7 {[%emt 0:00:00] Hoping for Bf3. This pair of bishops is nice.} Bf6 {[%emt 0:02:05]} (20... Bc5 $142) 21. Rab1 {[%emt 0:00:00] Strongly threatening Bc6.} Qe7 {[%emt 0:08:41]} 22. Qc4 {[%emt 0:00:00][%mdl 8192] [#] Dodges Nc5} (22. Bf3 $18 Ra2 23. Bc6) 22... Ra2 {[%emt 0:04:10][%mdl 8192] [#]} (22... Rxe3 $1 $19 {and life is good for Black.} 23. fxe3 Nb6 {[%mdl 64] Discovered Attack}) 23. Qc7 {[%emt 0:00:00][%csl LRa5,LRd7] Wards off Nb6} Nc5 {[%emt 0:06:54]} 24. Qxc5 {[%emt 0:00:00]} (24. Bxc5 $2 {perishes.} Qxc7 25. Bxf8 Kxf8 $19) 24... Rxa3 {[%emt 0:02:20]} (24... Qxb7 $142 25. Nc4 Rxa4) 25. Qxe7 {[%emt 0:00:00]} Bxe7 {[%emt 0:00:08]} 26. Rd7 {[%emt 0:00:00]} Re8 {[%emt 0:01:30]} 27. Rc1 {[%emt 0:00:00][%cal Od7e7] Black must now prevent Rxe7!} Rxa4 $2 {[%emt 0:02:57] [#]} (27... Bf6 28. b6 Nd3) 28. Rxe7 $1 {[%emt 0:00:00][%cal Re7e8][%mdl 576] Deflection, Back Rank} Kf8 {[%emt 0:03:32] [#]} (28... Rf8 29. Rd7) 29. Rcc7 $1 {[%emt 0:00:43] White mates.} Ra1+ {[%emt 0:04:35]} 30. Kg2 {[%emt 0:00:10]} Nd3 {[%emt 0:00:15]} 31. Rxf7+ {[%emt 0:00:52]} Kg8 {[%emt 0:00:03]} 32. Rxg7+ {[%emt 0:00:17]} Kh8 {[%emt 0:00:04]} 33. Rxh7+ {[%emt 0:00:50]} Kg8 {[%emt 0:00:04]} 34. Rcg7+ {[%emt 0:00:24]} Kf8 {[%emt 0:00:06]} 35. Bh6 {[%emt 0:00:21] Weighted Error Value: White=0.29 (precise) /Black=0.71} 1-0

[Event "10th Cherry Blossom Classic 2023"]
[Site "Dulles"]
[Date "2023.05.26"]
[Round "2.12"]
[White "Kiewra, Keaton"]
[Black "Kanli, Alperen"]
[Result "1/2-1/2"]
[ECO "A22"]
[WhiteElo "2352"]
[BlackElo "2111"]
[Annotator "TA"]
[PlyCount "108"]
[EventDate "2023.05.24"]
[EventType "swiss"]
[EventCountry "USA"]
[SourceTitle "playchess.com"]
[Source "ChessBase"]
[SourceQuality "1"]
[TimeControl "5400+30"]

{[%evp 9,108,7,11,11,10,0,14,0,52,19,43,-37,-46,-77,-56,-58,-64,-66,-68,-66,-47,-46,-49,-37,-46,-64,-36,-39,-44,-66,-68,-73,-58,-40,50,56,56,55,47,61,139,46,46,44,145,139,162,167,150,49,85,39,53,25,39,25,95,59,85,17,18,12,82,8,11,18,35,44,110,93,115,8,22,18,10,33,28,22,53,0,0,0,0,0,0,0,0,0,0,-8,0,0,0,0,0,0,0,0,0,0,0]} 1. c4 {[%emt 0:02:16]} e5 {[%emt 0:00:07]} 2. Nc3 {[%emt 0:00:16]} Nf6 {[%emt 0:00:03]} 3. e4 {[%emt 0:01:44]} Bb4 {[%emt 0:00:57]} 4. g3 {[%emt 0:02:23]} Bxc3 {[%emt 0:04:58]} 5. bxc3 {[%emt 0:01:27]} Nxe4 {[%emt 0:01:41] [#]} 6. Qg4 $146 {[%emt 0:01:46] A22: English Opening: 1...e5 2 Nc3 Nf6.} ({Predecessor:} 6. Bg2 Nf6 7. Ne2 O-O 8. O-O d6 9. d4 Re8 10. f4 Nc6 11. dxe5 dxe5 12. Bxc6 Qxd1 13. Rxd1 bxc6 14. fxe5 {0-1 Murthy,P (1940)-Josse,M (2235) Titled Tuesday intern op 20th Oct blitz 2020 (8)}) 6... Nf6 {[%emt 0:10:13]} 7. Qxg7 {[%emt 0:00:21]} Rg8 {[%emt 0:00:02]} 8. Qh6 {[%emt 0:00:10]} d5 {[%emt 0:00:31]} (8... Nc6 $11) 9. Ba3 {[%emt 0:03:12] Black should prevent Nf3.} (9. cxd5 Rg6 10. Qe3 (10. Bb5+ $2 c6 $19) 10... Nxd5 $11) 9... Bf5 {[%emt 0:04:11]} 10. h3 {[%emt 0:09:34]} (10. d4 $14) 10... Nbd7 $15 {[%emt 0:02:22]} 11. Qe3 {[%emt 0:01:59] [#] Prevents c5} c5 $1 {[%emt 0:06:38]} 12. Bxc5 {[%emt 0:06:53]} Qc7 {[%emt 0:00:36] Prevents Bd6.} 13. Ba3 {[%emt 0:01:41]} dxc4 {[%emt 0:01:50]} 14. Bg2 {[%emt 0:01:11] Repels Qc6} Qb6 {[%emt 0:02:15]} 15. Qxb6 {[%emt 0:07:49]} axb6 {[%emt 0:00:08]} 16. Bb4 {[%emt 0:00:18]} Be4 {[%emt 0:04:41]} 17. Nf3 {[%emt 0:02:16]} Nd5 {[%emt 0:01:29]} 18. O-O $1 {[%emt 0:04:17] [#]} Nf4 $1 {[%emt 0:02:21][%mdl 64] Pin} 19. Rfe1 {[%emt 0:01:26] White is weak on the light squares} (19. Nh4 Nxg2) 19... f5 {[%emt 0:01:46]} 20. Nh4 {[%emt 0:06:39][%cal Bf3h4,Bh4g2,Bg2e3,Be3d5][%mdl 32]} Nxg2 {[%emt 0:03:52]} (20... Bxg2 21. gxf4 Bc6+ 22. Kf1 $14) 21. Nxg2 {[%emt 0:00:18]} O-O-O {[%emt 0:02:27]} (21... Kf7 $15) 22. Ne3 $14 {[%emt 0:02:25]} Bd3 {[%emt 0:06:01]} 23. Nd5 {[%emt 0:00:42]} Rg7 {[%emt 0:01:00]} 24. a4 {[%emt 0:02:48][%cal Ba2a4,Ba4a5][%mdl 32]} f4 {[%emt 0:04:47]} (24... Be4 $14 25. Ne3 Bd3) 25. Kg2 {[%emt 0:01:08]} (25. Bd6 $16) 25... fxg3 {[%emt 0:03:47]} 26. fxg3 {[%emt 0:00:07]} Kb8 {[%emt 0:00:09]} (26... Re8 $14) 27. Bd6+ $16 {[%emt 0:02:51]} Ka7 {[%emt 0:01:07]} 28. a5 $1 {[%emt 0:00:22][%csl Gd5][%cal Ra5b6]} (28. Bxe5 $2 Nxe5 29. Nf4 (29. Rxe5 $2 Rxd5 {[%mdl 64] Decoy} 30. Rxd5 Be4+ 31. Kf2 Bxd5 $19) 29... Re7 $19) 28... b5 {[%emt 0:00:02]} 29. Bc7 {[%emt 0:00:53] White is more active.} (29. Bxe5 $2 Nxe5 30. Nf4 (30. Rxe5 $2 Rxd5 {[%mdl 64] Decoy} 31. Rxd5 Be4+ 32. Kf2 Bxd5 $19) 30... Re7 $19) (29. Nc7 $1 $16 {[%cal Rc7b5]}) 29... Rdg8 {[%emt 0:01:41]} 30. Re3 {[%emt 0:04:38]} ({Of course not} 30. Bxe5 Nxe5 31. Rxe5 Rxg3+ 32. Kf2 Rxh3 $15) (30. g4 $16) 30... Rf7 $14 {[%emt 0:01:12]} 31. Bxe5 {[%emt 0:02:00]} Nxe5 {[%emt 0:00:20]} 32. Rxe5 {[%emt 0:00:05]} Rd8 {[%emt 0:02:01]} (32... Rf5 $1 $11 33. Rxf5 Bxf5) 33. Rae1 $36 {[%emt 0:03:27][%mdl 2048] White has the initiative.} Rf5 {[%emt 0:04:23] [#]} 34. Nf4 {[%emt 0:04:30]} ({White should try} 34. Nc7 $1 $16) 34... Bc2 $11 {[%emt 0:01:26]} 35. R5e2 {[%emt 0:00:48]} Ka6 {[%emt 0:00:18] [#]} (35... Rd6 $11 {remains equal.}) 36. Ra1 {[%emt 0:02:03]} (36. Ne6 $1 $16 {[%cal Re6d8]} Rd7 37. Nd4 Rxd4 38. Re6+ (38. cxd4 Rd5 $14) 38... Kxa5 39. Ra1+ (39. cxd4 Rd5 $11) 39... Ba4 40. cxd4) 36... Ba4 {[%emt 0:03:01]} 37. Ra2 {[%emt 0:00:56]} Kxa5 {[%emt 0:02:34]} 38. Re7 {[%emt 0:00:14][%csl LRb7,LRh7]} h5 {[%emt 0:00:02]} (38... Rb8 $14) 39. Rxb7 $16 {[%emt 0:01:18]} h4 {[%emt 0:00:20]} 40. Rg7 {[%emt 0:00:59] Repels Rg8} (40. Ne6 $16 Rd3 41. gxh4) 40... Rdf8 $11 {[%emt 0:01:45]} 41. Rg4 {[%emt 0:00:24]} hxg3 {[%emt 0:00:22]} 42. Kxg3 {[%emt 0:00:06]} b4 {[%emt 0:00:12]} 43. cxb4+ {[%emt 0:01:00]} Kxb4 {[%emt 0:00:09]} 44. Ng6 {[%emt 0:07:57]} (44. Ra1 $14) 44... Rf3+ {[%emt 0:00:48] The position is equal.} 45. Kh4 {[%emt 0:00:06]} Re8 {[%emt 0:00:09]} 46. Rxa4+ {[%emt 0:04:04][%mdl 64] Deflection} Kxa4 {[%emt 0:00:10]} 47. Rxc4+ {[%emt 0:00:03][%mdl 4096] Endgame KRR-KRN} Kb5 {[%emt 0:00:18]} 48. Rf4 {[%emt 0:02:31]} Rd3 {[%emt 0:00:32]} 49. Kg4 {[%emt 0:01:56]} Rxd2 {[%emt 0:01:07]} 50. h4 {[%emt 0:00:18]} Rg2+ {[%emt 0:00:31]} 51. Kf5 {[%emt 0:00:24]} Rc8 {[%emt 0:00:39]} 52. Re4 {[%emt 0:01:01]} Rc5+ {[%emt 0:00:07]} 53. Re5 {[%emt 0:00:33]} Rxe5+ {[%emt 0:00:08]} 54. Nxe5 {[%emt 0:00:05]} Rh2 {[%emt 0:00:04] Weighted Error Value: White=0.21 (precise) /Black=0.18 (very precise)} 1/2-1/2

[Event "10th Cherry Blossom Classic 2023"]
[Site "Dulles"]
[Date "2023.05.26"]
[Round "2.13"]
[White "Shoykhet, Benjamin"]
[Black "Plotkin, Mark"]
[Result "0-1"]
[ECO "A25"]
[WhiteElo "1919"]
[BlackElo "2341"]
[Annotator "TA"]
[PlyCount "74"]
[EventDate "2023.05.24"]
[EventType "swiss"]
[EventCountry "USA"]
[SourceTitle "playchess.com"]
[Source "ChessBase"]
[SourceQuality "1"]
[TimeControl "5400+30"]

{[%evp 9,74,-5,13,-4,13,4,0,4,10,-17,-15,-21,-8,-23,44,33,102,114,156,42,42,-157,-151,-156,-177,-153,-117,-100,-104,-145,-96,-84,-80,-156,-158,-140,-140,-171,-170,-256,-235,-407,-368,-936,-1012,-1154,-1154,-1147,-1147,-1147,-1127,-994,-863,-29977,-29980,-29978,-29978,-29977,-29978,-2700,-972,-1088,-1068,-1023,-1010,-1031,-1022]} 1. c4 {[%emt 0:00:02]} g6 {[%emt 0:00:15]} 2. g3 {[%emt 0:00:10]} Bg7 {[%emt 0:00:04]} 3. Bg2 {[%emt 0:00:08]} e5 {[%emt 0:00:13]} 4. Nc3 {[%emt 0:00:16]} Nc6 {[%emt 0:00:16]} 5. Nf3 {[%emt 0:00:41]} f5 {[%emt 0:00:08]} 6. d3 {[%emt 0:00:12] A25: English Opening vs King's Indian with ...Nc6 but without early d3.} Nge7 {[%emt 0:02:06]} 7. O-O {[%emt 0:02:21]} O-O {[%emt 0:00:06]} 8. Rb1 {[%emt 0:07:07] The position is equal.} h6 {[%emt 0:08:50]} 9. e4 {[%emt 0:04:45] [#]} f4 $146 {[%emt 0:03:42]} ({Predecessor:} 9... d6 10. h3 Be6 11. Re1 fxe4 12. Nxe4 Qd7 13. g4 Rf7 14. Nh2 Raf8 15. b4 Nd4 {0-1 Salgues,M (1739)-Bon,M (2353) Avoine op 29th 2014 (8)}) 10. b4 {[%emt 0:00:56]} g5 {[%emt 0:01:27]} 11. b5 {[%emt 0:07:22]} Nb8 {[%emt 0:09:37]} (11... Na5 $1 $11) 12. d4 $14 {[%emt 0:19:29]} exd4 {[%emt 0:01:04]} ({Black should play} 12... d6 $14) 13. Nxd4 $16 {[%emt 0:01:23]} c5 {[%emt 0:00:37]} 14. bxc6 {[%emt 0:01:01]} ({White has to play} 14. Nf5 $1 $16 {[%cal Rf5g7]} Nxf5 15. exf5 Bxc3 16. gxf4) 14... dxc6 $14 {[%emt 0:00:42]} 15. Ba3 $2 {[%emt 0:06:22]} (15. Nce2 $14 {keeps the upper hand.}) 15... Bxd4 $17 {[%emt 0:12:30]} ({Inferior is} 15... Qxd4 16. Bxe7 Qxc3 17. Bxf8 Bxf8 18. gxf4 $15) 16. Bxe7 {[%emt 0:03:05]} Qxe7 {[%emt 0:00:02]} ({Not} 16... Bxf2+ 17. Rxf2 Qxe7 18. gxf4 $11) 17. Qxd4 {[%emt 0:00:08]} f3 {[%emt 0:00:26] And now ...Rd8 would win.} 18. Bh1 {[%emt 0:01:17]} Nd7 {[%emt 0:02:26] Prevents e5.} 19. Nd1 {[%emt 0:03:27] [#]} Qe5 {[%emt 0:02:48] Prevents Ne3} (19... Nc5 $142 $1 20. Nb2 Bg4) 20. Qe3 {[%emt 0:02:50]} Qf6 $36 {[%emt 0:01:19][%mdl 2048] Black is in control. Black is more active.} 21. Rb3 {[%emt 0:00:38]} (21. c5 $142) 21... Ne5 {[%emt 0:00:24]} 22. Nb2 {[%emt 0:01:01]} b6 {[%emt 0:15:15]} 23. Rc1 {[%emt 0:18:56] [#]} Be6 $1 {[%emt 0:00:58]} 24. a4 {[%emt 0:00:14]} (24. Rbc3 $142) 24... Rad8 $19 {[%emt 0:01:08]} 25. Rbc3 $2 {[%emt 0:02:22] White is weak on the light squares} (25. a5) 25... Qf7 {[%emt 0:02:15]} 26. c5 $2 {[%emt 0:06:12]} (26. Rd3 Rde8 27. Rcc3) 26... Qh5 {[%emt 0:00:27] ...Ng4 is the strong threat.} 27. Qe1 {[%emt 0:00:40]} Ng4 {[%emt 0:02:24]} 28. Bxf3 {[%emt 0:00:31]} Qxh2+ {[%emt 0:00:04]} 29. Kf1 {[%emt 0:00:06] [#]} Rxf3 $1 {[%emt 0:00:36][%mdl 512]} 30. Rxf3 {[%emt 0:00:13]} Ne5 {[%emt 0:00:41] ( -> ...Qh1+)} 31. Rcc3 {[%emt 0:07:04]} Bg4 {[%emt 0:00:33]} 32. Ke2 {[%emt 0:03:07]} Qg2 {[%emt 0:00:15][%mdl 64] Pin} 33. Qf1 {[%emt 0:01:49]} Bxf3+ {[%emt 0:00:09]} 34. Ke1 {[%emt 0:00:14]} Qxf1+ {[%emt 0:00:03] Black is clearly winning.} 35. Kxf1 {[%emt 0:00:05]} Rd2 {[%emt 0:00:10]} 36. cxb6 {[%emt 0:00:22]} axb6 {[%emt 0:00:17]} 37. Rb3 {[%emt 0:00:16]} Rc2 {[%emt 0:00:03] Artfully played by Plotkin.   Weighted Error Value: White=0.80/Black=0.37} 0-1